[Event "Titled Tuesday Blitz November 29 Late 2022"]
[White "Mgeladze, Tamaz"]
[Black "Quinones Garcia, Santiago"]
[WhiteFideId "13601202"]
[BlackFideId "4408497"]
[WhiteElo "2288"]
[BlackElo "2249"]
[Result "1-0"]
[Round "01"]
[TimeControl "180+1"]
[Date "2022.11.30"]
[WhiteClock "0:00:43"]
[BlackClock "0:00:05"]

1. c4 {[%clk 0:02:58]}  Nf6 {[%clk 0:02:59]} 2. Nc3 {[%clk 0:02:58]}  g6 {[%clk 0:03:00]} 3. g3 {[%clk 0:02:58]}  d6 {[%clk 0:03:00]} 4. Bg2 {[%clk 0:02:58]}  Bg7 {[%clk 0:03:01]} 5. Nf3 {[%clk 0:02:59]}  c6 {[%clk 0:03:01]} 6. O-O {[%clk 0:02:59]}  O-O {[%clk 0:03:01]} 7. d3 {[%clk 0:03:00]}  a5 {[%clk 0:03:01]} 8. a3 {[%clk 0:03:00]}  e5 {[%clk 0:03:02]} 9. Rb1 {[%clk 0:03:01]}  Bf5 {[%clk 0:03:00]} 10. b4 {[%clk 0:03:01]}  axb4 {[%clk 0:03:00]} 11. axb4 {[%clk 0:03:02]}  Nbd7 {[%clk 0:03:00]} 12. b5 {[%clk 0:03:02]}  Rc8 {[%clk 0:02:59]} 13. bxc6 {[%clk 0:03:02]}  bxc6 {[%clk 0:02:59]} 14. Ba3 {[%clk 0:03:02]}  Qc7 {[%clk 0:02:52]} 15. Nd2 {[%clk 0:03:01]}  Rfd8 {[%clk 0:02:44]} 16. Qa4 {[%clk 0:02:51]}  Nf8 {[%clk 0:02:35]} 17. Qc2 {[%clk 0:02:41]}  d5 {[%clk 0:02:29]} 18. Bxf8 {[%clk 0:02:39]}  Bxf8 {[%clk 0:02:25]} 19. Rb3 {[%clk 0:02:32]}  Be6 {[%clk 0:02:00]} 20. Rfb1 {[%clk 0:02:27]}  Rb8 {[%clk 0:01:40]} 21. h3 {[%clk 0:02:18]}  Rxb3 {[%clk 0:01:39]} 22. Rxb3 {[%clk 0:02:19]}  Rb8 {[%clk 0:01:34]} 23. Kh2 {[%clk 0:02:19]}  Rxb3 {[%clk 0:01:31]} 24. Qxb3 {[%clk 0:02:20]}  Bc5 {[%clk 0:01:28]} 25. e3 {[%clk 0:02:14]}  Qb6 {[%clk 0:01:15]} 26. cxd5 {[%clk 0:02:04]}  cxd5 {[%clk 0:01:08]} 27. Nxd5 {[%clk 0:01:45]}  Nxd5 {[%clk 0:00:51]} 28. Bxd5 {[%clk 0:01:43]}  Qxb3 {[%clk 0:00:19]} 29. Bxb3 {[%clk 0:01:44]}  Bb4 {[%clk 0:00:19]} 30. Nc4 {[%clk 0:01:31]}  f6 {[%clk 0:00:16]} 31. Kg2 {[%clk 0:01:29]}  Kg7 {[%clk 0:00:14]} 32. Kf3 {[%clk 0:01:29]}  Bf5 {[%clk 0:00:12]} 33. d4 {[%clk 0:01:15]}  exd4 {[%clk 0:00:12]} 34. exd4 {[%clk 0:01:15]}  Bxh3 {[%clk 0:00:12]} 35. g4 {[%clk 0:01:13]}  h5 {[%clk 0:00:11]} 36. gxh5 {[%clk 0:01:12]}  gxh5 {[%clk 0:00:12]} 37. d5 {[%clk 0:01:12]}  Bg4+ {[%clk 0:00:11]} 38. Kf4 {[%clk 0:01:11]}  Bc5 {[%clk 0:00:10]} 39. f3 {[%clk 0:01:10]}  Bd7 {[%clk 0:00:10]} 40. Ne3 {[%clk 0:01:00]}  Bd6+ {[%clk 0:00:09]} 41. Ke4 {[%clk 0:01:00]}  f5+ {[%clk 0:00:05]} 42. Nxf5+ {[%clk 0:00:57]}  Bxf5+ {[%clk 0:00:04]} 43. Kxf5 {[%clk 0:00:58]}  h4 {[%clk 0:00:04]} 44. Kg4 {[%clk 0:00:56]}  Be7 {[%clk 0:00:03]} 45. Bc4 {[%clk 0:00:55]}  Kf8 {[%clk 0:00:02]} 46. Bd3 {[%clk 0:00:52]}  Ke8 {[%clk 0:00:02]} 47. Bf5 {[%clk 0:00:52]}  Kf7 {[%clk 0:00:02]} 48. Kf4 {[%clk 0:00:53]}  Bf6 {[%clk 0:00:02]} 49. Ke4 {[%clk 0:00:52]}  Ke7 {[%clk 0:00:03]} 50. Bg4 {[%clk 0:00:51]}  Kd6 {[%clk 0:00:03]} 51. Be6 {[%clk 0:00:51]}  Be7 {[%clk 0:00:03]} 52. f4 {[%clk 0:00:49]}  Bf6 {[%clk 0:00:03]} 53. Kf3 {[%clk 0:00:47]}  Ke7 {[%clk 0:00:03]} 54. Kg4 {[%clk 0:00:47]}  Kd6 {[%clk 0:00:03]} 55. Kf3 {[%clk 0:00:41]}  Ke7 {[%clk 0:00:01]} 56. Bg4 {[%clk 0:00:39]}  Kd6 {[%clk 0:00:02]} 57. Ke4 {[%clk 0:00:40]}  Ke7 {[%clk 0:00:01]} 58. Kf5 {[%clk 0:00:41]}  Bd4 {[%clk 0:00:01]} 59. Kg5 {[%clk 0:00:38]}  Bc3 {[%clk 0:00:02]} 60. Kxh4 {[%clk 0:00:38]}  Kd6 {[%clk 0:00:02]} 61. Be6 {[%clk 0:00:38]}  Bd2 {[%clk 0:00:03]} 62. Kg4 {[%clk 0:00:38]}  Ke7 {[%clk 0:00:03]} 63. Kf5 {[%clk 0:00:39]}  Kd6 {[%clk 0:00:03]} 64. Kg5 {[%clk 0:00:39]}  Ke7 {[%clk 0:00:03]} 65. Kg4 {[%clk 0:00:37]}  Bc3 {[%clk 0:00:03]} 66. f5 {[%clk 0:00:38]}  Bf6 {[%clk 0:00:04]} 67. Kh5 {[%clk 0:00:39]}  Bc3 {[%clk 0:00:04]} 68. Kg6 {[%clk 0:00:39]}  Bd4 {[%clk 0:00:04]} 69. Kh7 {[%clk 0:00:39]}  Bc3 {[%clk 0:00:05]} 70. Kg8 {[%clk 0:00:40]}  Bf6 {[%clk 0:00:05]} 71. Kh7 {[%clk 0:00:41]}  Be5 {[%clk 0:00:05]} 72. Kg6 {[%clk 0:00:41]}  Bf6 {[%clk 0:00:06]} 73. d6+ {[%clk 0:00:42]}  Kxd6 {[%clk 0:00:05]} 74. Kxf6 {[%clk 0:00:43]} 1-0


[Site "https://www.chess.com"]

[Event "Titled Tuesday Blitz November 29 Late 2022"]
[White "Nugumanov, Bakhtiyar"]
[Black "Risteski, Emil"]
[WhiteFideId "13701797"]
[BlackFideId "15005267"]
[WhiteElo "2287"]
[BlackElo "2251"]
[Result "0-1"]
[Round "01"]
[TimeControl "180+1"]
[Date "2022.11.30"]
[WhiteClock "0:00:03"]
[BlackClock "0:00:11"]

1. e4 {[%clk 0:02:51]}  d6 {[%clk 0:03:00]} 2. d4 {[%clk 0:02:50]}  Nf6 {[%clk 0:03:01]} 3. Nc3 {[%clk 0:02:50]}  e5 {[%clk 0:03:01]} 4. Nf3 {[%clk 0:02:47]}  Nbd7 {[%clk 0:03:01]} 5. g4 {[%clk 0:02:38]}  d5 {[%clk 0:02:59]} 6. exd5 {[%clk 0:02:11]}  Nxg4 {[%clk 0:02:43]} 7. Rg1 {[%clk 0:01:47]}  exd4 {[%clk 0:02:28]} 8. Nxd4 {[%clk 0:01:35]}  h5 {[%clk 0:02:01]} 9. h3 {[%clk 0:01:21]}  Ngf6 {[%clk 0:02:01]} 10. Nf5 {[%clk 0:01:10]}  Ne5 {[%clk 0:01:49]} 11. Nxg7+ {[%clk 0:00:53]}  Bxg7 {[%clk 0:01:50]} 12. Rxg7 {[%clk 0:00:54]}  Qe7 {[%clk 0:01:50]} 13. Be3 {[%clk 0:00:51]}  Ng6 {[%clk 0:01:43]} 14. Qd4 {[%clk 0:00:42]}  Kf8 {[%clk 0:01:34]} 15. Rxg6 {[%clk 0:00:30]}  fxg6 {[%clk 0:01:35]} 16. O-O-O {[%clk 0:00:30]}  Kg7 {[%clk 0:01:24]} 17. Bg5 {[%clk 0:00:26]}  Bf5 {[%clk 0:01:21]} 18. d6 {[%clk 0:00:18]}  Qxd6 {[%clk 0:01:12]} 19. Nd5 {[%clk 0:00:18]}  Rhf8 {[%clk 0:01:10]} 20. Nxf6 {[%clk 0:00:16]}  Qxd4 {[%clk 0:01:00]} 21. Rxd4 {[%clk 0:00:16]}  Rxf6 {[%clk 0:01:00]} 22. Bxf6+ {[%clk 0:00:17]}  Kxf6 {[%clk 0:01:01]} 23. h4 {[%clk 0:00:17]}  Re8 {[%clk 0:00:59]} 24. Kd2 {[%clk 0:00:16]}  Ke5 {[%clk 0:00:50]} 25. Ra4 {[%clk 0:00:15]}  a6 {[%clk 0:00:49]} 26. Bg2 {[%clk 0:00:12]}  c6 {[%clk 0:00:43]} 27. Rb4 {[%clk 0:00:11]}  Re7 {[%clk 0:00:41]} 28. Rb3 {[%clk 0:00:11]}  Rd7+ {[%clk 0:00:39]} 29. Ke2 {[%clk 0:00:11]}  Bxc2 {[%clk 0:00:36]} 30. Re3+ {[%clk 0:00:11]}  Kf6 {[%clk 0:00:36]} 31. Rf3+ {[%clk 0:00:10]}  Ke5 {[%clk 0:00:34]} 32. Re3+ {[%clk 0:00:10]}  Kf6 {[%clk 0:00:34]} 33. Rf3+ {[%clk 0:00:11]}  Bf5 {[%clk 0:00:34]} 34. Rb3 {[%clk 0:00:08]}  Re7+ {[%clk 0:00:25]} 35. Kd2 {[%clk 0:00:07]}  Bc8 {[%clk 0:00:20]} 36. Rf3+ {[%clk 0:00:06]}  Kg7 {[%clk 0:00:20]} 37. Rb3 {[%clk 0:00:06]}  Rc7 {[%clk 0:00:19]} 38. Rd3 {[%clk 0:00:06]}  Bf5 {[%clk 0:00:16]} 39. Rd8 {[%clk 0:00:05]}  c5 {[%clk 0:00:15]} 40. Kc3 {[%clk 0:00:05]}  b5 {[%clk 0:00:15]} 41. Ra8 {[%clk 0:00:05]}  b4+ {[%clk 0:00:14]} 42. Kc4 {[%clk 0:00:05]}  Be6+ {[%clk 0:00:13]} 43. Bd5 {[%clk 0:00:05]}  Bxd5+ {[%clk 0:00:13]} 44. Kxd5 {[%clk 0:00:05]}  c4 {[%clk 0:00:14]} 45. Re8 {[%clk 0:00:02]}  c3 {[%clk 0:00:14]} 46. bxc3 {[%clk 0:00:03]}  bxc3 {[%clk 0:00:14]} 47. Re1 {[%clk 0:00:04]}  c2 {[%clk 0:00:15]} 48. Rc1 {[%clk 0:00:04]}  Kf6 {[%clk 0:00:15]} 49. Ke4 {[%clk 0:00:04]}  Rc8 {[%clk 0:00:12]} 50. Kd3 {[%clk 0:00:03]}  Kf5 {[%clk 0:00:13]} 51. Kd2 {[%clk 0:00:03]}  Kg4 {[%clk 0:00:13]} 52. Rg1+ {[%clk 0:00:03]}  Kxh4 {[%clk 0:00:13]} 53. Kc1 {[%clk 0:00:04]}  g5 {[%clk 0:00:13]} 54. Rh1+ {[%clk 0:00:04]}  Kg4 {[%clk 0:00:14]} 55. Rg1+ {[%clk 0:00:05]}  Kf5 {[%clk 0:00:14]} 56. Rg3 {[%clk 0:00:05]}  g4 {[%clk 0:00:13]} 57. Ra3 {[%clk 0:00:06]}  Rc6 {[%clk 0:00:13]} 58. Ra5+ {[%clk 0:00:06]}  Kg6 {[%clk 0:00:13]} 59. a4 {[%clk 0:00:04]}  h4 {[%clk 0:00:14]} 60. Rd5 {[%clk 0:00:05]}  h3 {[%clk 0:00:13]} 61. Rd8 {[%clk 0:00:05]}  Rc7 {[%clk 0:00:12]} 62. Rd6+ {[%clk 0:00:05]}  Kg5 {[%clk 0:00:11]} 63. Rd8 {[%clk 0:00:05]}  Rh7 {[%clk 0:00:11]} 64. Re8 {[%clk 0:00:03]}  h2 {[%clk 0:00:11]} 0-1


[Site "https://www.chess.com"]

[Event "Titled Tuesday Blitz November 29 Late 2022"]
[White "Pace, Christopher"]
[Black "Barria Zuniga, Daniel"]
[WhiteFideId "2610167"]
[BlackFideId "3400816"]
[WhiteElo "2299"]
[BlackElo "2414"]
[Result "0-1"]
[Round "01"]
[TimeControl "180+1"]
[Date "2022.11.30"]
[WhiteClock "0:00:06"]
[BlackClock "0:01:21"]

1. e4 {[%clk 0:02:55]}  c5 {[%clk 0:02:57]} 2. Nf3 {[%clk 0:02:48]}  Nc6 {[%clk 0:02:56]} 3. d4 {[%clk 0:02:47]}  cxd4 {[%clk 0:02:56]} 4. Nxd4 {[%clk 0:02:48]}  e6 {[%clk 0:02:54]} 5. Nc3 {[%clk 0:02:41]}  Qc7 {[%clk 0:02:54]} 6. Be2 {[%clk 0:02:33]}  a6 {[%clk 0:02:54]} 7. O-O {[%clk 0:02:25]}  Na5 {[%clk 0:02:53]} 8. Kh1 {[%clk 0:02:14]}  b5 {[%clk 0:02:53]} 9. f4 {[%clk 0:02:13]}  Bb7 {[%clk 0:02:53]} 10. a3 {[%clk 0:01:42]}  Be7 {[%clk 0:02:39]} 11. f5 {[%clk 0:01:24]}  Nf6 {[%clk 0:02:36]} 12. Bf4 {[%clk 0:00:43]}  e5 {[%clk 0:02:30]} 13. Bg3 {[%clk 0:00:44]}  d6 {[%clk 0:02:23]} 14. Nb3 {[%clk 0:00:39]}  O-O {[%clk 0:02:14]} 15. Nxa5 {[%clk 0:00:33]}  Qxa5 {[%clk 0:02:15]} 16. Bf3 {[%clk 0:00:30]}  Rfc8 {[%clk 0:02:09]} 17. Qd3 {[%clk 0:00:28]}  Rxc3 {[%clk 0:02:05]} 18. bxc3 {[%clk 0:00:28]}  Rc8 {[%clk 0:02:05]} 19. Be1 {[%clk 0:00:19]}  Rc4 {[%clk 0:02:04]} 20. Bd2 {[%clk 0:00:18]}  Nxe4 {[%clk 0:01:55]} 21. a4 {[%clk 0:00:18]}  Rxa4 {[%clk 0:01:49]} 22. Rxa4 {[%clk 0:00:18]}  Qxa4 {[%clk 0:01:49]} 23. c4 {[%clk 0:00:04]}  Qxc4 {[%clk 0:01:48]} 24. Qxc4 {[%clk 0:00:04]}  bxc4 {[%clk 0:01:48]} 25. Bb4 {[%clk 0:00:03]}  Kf8 {[%clk 0:01:45]} 26. Re1 {[%clk 0:00:02]}  d5 {[%clk 0:01:44]} 27. Bxe7+ {[%clk 0:00:03]}  Kxe7 {[%clk 0:01:45]} 28. Bxe4 {[%clk 0:00:03]}  dxe4 {[%clk 0:01:45]} 29. Rd1 {[%clk 0:00:04]}  Bc8 {[%clk 0:01:42]} 30. g4 {[%clk 0:00:03]}  g6 {[%clk 0:01:41]} 31. fxg6 {[%clk 0:00:03]}  hxg6 {[%clk 0:01:42]} 32. h3 {[%clk 0:00:03]}  f5 {[%clk 0:01:41]} 33. Kg2 {[%clk 0:00:02]}  fxg4 {[%clk 0:01:41]} 34. hxg4 {[%clk 0:00:03]}  Bxg4 {[%clk 0:01:41]} 35. Ra1 {[%clk 0:00:04]}  e3 {[%clk 0:01:26]} 36. Kg3 {[%clk 0:00:04]}  Bf5 {[%clk 0:01:25]} 37. Kf3 {[%clk 0:00:04]}  Bxc2 {[%clk 0:01:25]} 38. Kxe3 {[%clk 0:00:04]}  Bf5 {[%clk 0:01:22]} 39. Rxa6 {[%clk 0:00:04]}  c3 {[%clk 0:01:22]} 40. Rc6 {[%clk 0:00:05]}  c2 {[%clk 0:01:23]} 41. Rc3 {[%clk 0:00:05]}  Kf6 {[%clk 0:01:22]} 42. Kf3 {[%clk 0:00:05]}  Kg5 {[%clk 0:01:22]} 43. Kg3 {[%clk 0:00:05]}  Kf6 {[%clk 0:01:21]} 44. Rc6+ {[%clk 0:00:05]}  Ke7 {[%clk 0:01:21]} 45. Rc5 {[%clk 0:00:06]}  Kd6 {[%clk 0:01:21]} 46. Rc3 {[%clk 0:00:06]}  Kd5 {[%clk 0:01:20]} 47. Rc7 {[%clk 0:00:06]}  Kd4 {[%clk 0:01:21]} 0-1


[Site "https://www.chess.com"]

[Event "Titled Tuesday Blitz November 29 Late 2022"]
[White "Pakleza, Zbigniew"]
[Black "Gurevich, Dmitry"]
[WhiteFideId "1119290"]
[BlackFideId "2000407"]
[WhiteElo "2411"]
[BlackElo "2506"]
[Result "1-0"]
[Round "01"]
[TimeControl "180+1"]
[Date "2022.11.30"]
[WhiteClock "0:02:49"]
[BlackClock "0:02:36"]

1. d4 {[%clk 0:03:00]}  Nf6 {[%clk 0:02:59]} 2. Nf3 {[%clk 0:03:01]}  e6 {[%clk 0:02:58]} 3. Bf4 {[%clk 0:03:01]}  b6 {[%clk 0:02:56]} 4. e3 {[%clk 0:03:01]}  Bb7 {[%clk 0:02:56]} 5. h3 {[%clk 0:03:01]}  Be7 {[%clk 0:02:56]} 6. Nbd2 {[%clk 0:02:59]}  O-O {[%clk 0:02:56]} 7. Bd3 {[%clk 0:03:00]}  c5 {[%clk 0:02:55]} 8. c3 {[%clk 0:03:00]}  cxd4 {[%clk 0:02:55]} 9. cxd4 {[%clk 0:02:59]}  d5 {[%clk 0:02:50]} 10. O-O {[%clk 0:02:58]}  Nc6 {[%clk 0:02:47]} 11. Qa4 {[%clk 0:02:53]}  a6 {[%clk 0:02:45]} 12. Rfc1 {[%clk 0:02:53]}  b5 {[%clk 0:02:43]} 13. Qd1 {[%clk 0:02:53]}  Na5 {[%clk 0:02:36]} 14. Bc7 {[%clk 0:02:49]} 1-0


[Site "https://www.chess.com"]

[Event "Titled Tuesday Blitz November 29 Late 2022"]
[White "Papp, Petra"]
[Black "Abdrlauf, Elham"]
[WhiteFideId "739049"]
[BlackFideId "1533533"]
[WhiteElo "2259"]
[BlackElo "2447"]
[Result "0-1"]
[Round "01"]
[TimeControl "180+1"]
[Date "2022.11.30"]
[WhiteClock "0:00:02"]
[BlackClock "0:00:03"]

1. e4 {[%clk 0:02:59]}  c6 {[%clk 0:02:59]} 2. Nc3 {[%clk 0:02:56]}  d5 {[%clk 0:03:00]} 3. Nf3 {[%clk 0:02:56]}  dxe4 {[%clk 0:03:01]} 4. Nxe4 {[%clk 0:02:55]}  Nf6 {[%clk 0:03:02]} 5. Ng3 {[%clk 0:02:54]}  h5 {[%clk 0:03:00]} 6. Bc4 {[%clk 0:02:51]}  h4 {[%clk 0:02:58]} 7. Nf1 {[%clk 0:02:50]}  h3 {[%clk 0:02:59]} 8. g3 {[%clk 0:02:50]}  Bf5 {[%clk 0:02:38]} 9. Ne3 {[%clk 0:02:47]}  Bh7 {[%clk 0:02:20]} 10. O-O {[%clk 0:02:45]}  e6 {[%clk 0:02:20]} 11. d4 {[%clk 0:02:25]}  Be7 {[%clk 0:02:20]} 12. c3 {[%clk 0:02:21]}  Nbd7 {[%clk 0:02:18]} 13. Re1 {[%clk 0:02:19]}  Qc7 {[%clk 0:02:04]} 14. a4 {[%clk 0:02:00]}  O-O-O {[%clk 0:01:55]} 15. Bf1 {[%clk 0:01:56]}  Bg6 {[%clk 0:01:45]} 16. Nc4 {[%clk 0:01:55]}  Nd5 {[%clk 0:01:37]} 17. a5 {[%clk 0:01:45]}  Bh5 {[%clk 0:01:20]} 18. Be2 {[%clk 0:01:36]}  N7f6 {[%clk 0:01:01]} 19. Nce5 {[%clk 0:01:34]}  Bd6 {[%clk 0:00:55]} 20. a6 {[%clk 0:01:18]}  b6 {[%clk 0:00:54]} 21. Qa4 {[%clk 0:01:12]}  b5 {[%clk 0:00:50]} 22. Qb3 {[%clk 0:01:09]}  Nb6 {[%clk 0:00:42]} 23. c4 {[%clk 0:00:56]}  Bxf3 {[%clk 0:00:39]} 24. Bxf3 {[%clk 0:00:50]}  Bxe5 {[%clk 0:00:39]} 25. dxe5 {[%clk 0:00:49]}  bxc4 {[%clk 0:00:40]} 26. Qb4 {[%clk 0:00:27]}  Nfd5 {[%clk 0:00:36]} 27. Qc5 {[%clk 0:00:27]}  Rhe8 {[%clk 0:00:27]} 28. Bg5 {[%clk 0:00:22]}  f6 {[%clk 0:00:26]} 29. exf6 {[%clk 0:00:22]}  gxf6 {[%clk 0:00:27]} 30. Be3 {[%clk 0:00:19]}  Qd6 {[%clk 0:00:26]} 31. Qa5 {[%clk 0:00:18]}  Qb4 {[%clk 0:00:18]} 32. Bxb6 {[%clk 0:00:17]}  Qxb6 {[%clk 0:00:15]} 33. Qa4 {[%clk 0:00:14]}  Qb5 {[%clk 0:00:11]} 34. Qa3 {[%clk 0:00:13]}  Nb6 {[%clk 0:00:06]} 35. Rac1 {[%clk 0:00:10]}  Kb8 {[%clk 0:00:06]} 36. Qa2 {[%clk 0:00:10]}  Rd6 {[%clk 0:00:04]} 37. Bg4 {[%clk 0:00:09]}  Red8 {[%clk 0:00:02]} 38. Bxh3 {[%clk 0:00:09]}  Rd2 {[%clk 0:00:03]} 39. Bg2 {[%clk 0:00:07]}  Rxb2 {[%clk 0:00:03]} 40. Qa1 {[%clk 0:00:07]}  Rdd2 {[%clk 0:00:03]} 41. Rf1 {[%clk 0:00:07]}  Qc5 {[%clk 0:00:03]} 42. Rb1 {[%clk 0:00:02]}  Rxf2 {[%clk 0:00:02]} 43. Rxb2 {[%clk 0:00:02]}  Rxb2+ {[%clk 0:00:02]} 44. Kh1 {[%clk 0:00:02]}  Qd4 {[%clk 0:00:02]} 45. Rg1 {[%clk 0:00:02]}  c3 {[%clk 0:00:02]} 46. Qc1 {[%clk 0:00:03]}  c2 {[%clk 0:00:02]} 47. Qh6 {[%clk 0:00:03]}  Rb1 {[%clk 0:00:02]} 48. Qf8+ {[%clk 0:00:02]}  Nc8 {[%clk 0:00:03]} 49. Bf1 {[%clk 0:00:01]}  c1=Q {[%clk 0:00:02]} 50. Qe7 {[%clk 0:00:02]}  Qxg1+ {[%clk 0:00:02]} 51. Kxg1 {[%clk 0:00:02]}  Qxf1# {[%clk 0:00:03]} 0-1


[Site "https://www.chess.com"]

[Event "Titled Tuesday Blitz November 29 Late 2022"]
[White "Poliakova, Varvara"]
[Black "Adel, Sara"]
[WhiteFideId "13518313"]
[BlackFideId "10616764"]
[WhiteElo "2099"]
[BlackElo "1994"]
[Result "1/2-1/2"]
[Round "01"]
[TimeControl "180+1"]
[Date "2022.11.30"]
[WhiteClock "0:00:11"]
[BlackClock "0:00:11"]

1. e4 {[%clk 0:02:53]}  c6 {[%clk 0:02:57]} 2. d4 {[%clk 0:02:49]}  d5 {[%clk 0:02:58]} 3. Nd2 {[%clk 0:02:50]}  dxe4 {[%clk 0:02:58]} 4. Nxe4 {[%clk 0:02:51]}  Bf5 {[%clk 0:02:58]} 5. Ng3 {[%clk 0:02:51]}  Bg6 {[%clk 0:02:59]} 6. h4 {[%clk 0:02:51]}  h6 {[%clk 0:02:59]} 7. Nh3 {[%clk 0:02:52]}  Nf6 {[%clk 0:02:58]} 8. Nf4 {[%clk 0:02:52]}  Bh7 {[%clk 0:02:58]} 9. Bc4 {[%clk 0:02:48]}  Nbd7 {[%clk 0:02:54]} 10. O-O {[%clk 0:02:39]}  Nb6 {[%clk 0:02:46]} 11. Bb3 {[%clk 0:02:36]}  Nfd5 {[%clk 0:02:44]} 12. c4 {[%clk 0:02:30]}  Nxf4 {[%clk 0:02:44]} 13. Bxf4 {[%clk 0:02:31]}  e6 {[%clk 0:02:43]} 14. Re1 {[%clk 0:02:14]}  Qxh4 {[%clk 0:02:42]} 15. Qf3 {[%clk 0:02:06]}  Be7 {[%clk 0:02:25]} 16. d5 {[%clk 0:02:04]}  cxd5 {[%clk 0:02:18]} 17. cxd5 {[%clk 0:02:04]}  exd5 {[%clk 0:02:07]} 18. Bd6 {[%clk 0:02:02]}  Nc8 {[%clk 0:01:47]} 19. Bxe7 {[%clk 0:01:57]}  Nxe7 {[%clk 0:01:46]} 20. Qe3 {[%clk 0:01:40]}  Be4 {[%clk 0:01:36]} 21. Nxe4 {[%clk 0:01:39]}  dxe4 {[%clk 0:01:35]} 22. Qxe4 {[%clk 0:01:39]}  Qxe4 {[%clk 0:01:32]} 23. Rxe4 {[%clk 0:01:40]}  Rc8 {[%clk 0:01:31]} 24. Rae1 {[%clk 0:01:39]}  Rc7 {[%clk 0:01:31]} 25. Ba4+ {[%clk 0:01:35]}  Kd8 {[%clk 0:01:30]} 26. Rf4 {[%clk 0:01:29]}  Ng6 {[%clk 0:01:25]} 27. Rfe4 {[%clk 0:01:27]}  Re7 {[%clk 0:01:22]} 28. Rxe7 {[%clk 0:01:25]}  Nxe7 {[%clk 0:01:23]} 29. Rd1+ {[%clk 0:01:26]}  Kc8 {[%clk 0:01:19]} 30. Rd7 {[%clk 0:01:27]}  Re8 {[%clk 0:01:06]} 31. Rxb7 {[%clk 0:01:27]}  Kxb7 {[%clk 0:01:03]} 32. Bxe8 {[%clk 0:01:27]}  f6 {[%clk 0:01:03]} 33. Kf1 {[%clk 0:01:23]}  Nd5 {[%clk 0:01:01]} 34. Ke2 {[%clk 0:01:21]}  Nf4+ {[%clk 0:00:59]} 35. Kf3 {[%clk 0:01:21]}  Nd3 {[%clk 0:00:59]} 36. b3 {[%clk 0:01:13]}  Nc1 {[%clk 0:00:58]} 37. Kg4 {[%clk 0:01:09]}  Nxa2 {[%clk 0:00:57]} 38. Kh5 {[%clk 0:01:08]}  Nc1 {[%clk 0:00:57]} 39. Kg6 {[%clk 0:01:02]}  Nxb3 {[%clk 0:00:53]} 40. Kxg7 {[%clk 0:01:02]}  Nd2 {[%clk 0:00:47]} 41. Kxh6 {[%clk 0:01:00]}  Ne4 {[%clk 0:00:47]} 42. f4 {[%clk 0:00:57]}  Ng3 {[%clk 0:00:46]} 43. Kg6 {[%clk 0:00:55]}  f5 {[%clk 0:00:45]} 44. Kg5 {[%clk 0:00:45]}  a5 {[%clk 0:00:44]} 45. Kh4 {[%clk 0:00:43]}  Ne2 {[%clk 0:00:44]} 46. g4 {[%clk 0:00:31]}  fxg4 {[%clk 0:00:20]} 47. f5 {[%clk 0:00:30]}  g3 {[%clk 0:00:18]} 48. Bh5 {[%clk 0:00:30]}  Nd4 {[%clk 0:00:17]} 49. f6 {[%clk 0:00:24]}  g2 {[%clk 0:00:16]} 50. f7 {[%clk 0:00:25]}  g1=Q {[%clk 0:00:16]} 51. f8=Q {[%clk 0:00:24]}  Qh2+ {[%clk 0:00:15]} 52. Kg4 {[%clk 0:00:21]}  Qg2+ {[%clk 0:00:15]} 53. Kh4 {[%clk 0:00:20]}  Qh2+ {[%clk 0:00:12]} 54. Kg4 {[%clk 0:00:20]}  Qg2+ {[%clk 0:00:12]} 55. Kh4 {[%clk 0:00:20]}  Qe4+ {[%clk 0:00:13]} 56. Kg3 {[%clk 0:00:13]}  Qe5+ {[%clk 0:00:12]} 57. Kh4 {[%clk 0:00:11]}  Qh2+ {[%clk 0:00:11]} 1/2-1/2


[Site "https://www.chess.com"]

[Event "Titled Tuesday Blitz November 29 Late 2022"]
[White "Popilski, Gil"]
[Black "Iinuma, Paul Y"]
[WhiteFideId "2809060"]
[BlackFideId "2031809"]
[WhiteElo "2537"]
[BlackElo "2066"]
[Result "0-1"]
[Round "01"]
[TimeControl "180+1"]
[Date "2022.11.30"]
[WhiteClock "0:00:02"]
[BlackClock "0:00:26"]

1. Nf3 {[%clk 0:03:00]}  Nf6 {[%clk 0:02:42]} 2. c4 {[%clk 0:02:59]}  g6 {[%clk 0:02:40]} 3. Nc3 {[%clk 0:02:57]}  Bg7 {[%clk 0:02:41]} 4. e4 {[%clk 0:02:51]}  d6 {[%clk 0:02:42]} 5. d4 {[%clk 0:02:51]}  O-O {[%clk 0:02:42]} 6. h3 {[%clk 0:02:50]}  e5 {[%clk 0:02:41]} 7. d5 {[%clk 0:02:50]}  Na6 {[%clk 0:02:37]} 8. Bg5 {[%clk 0:02:49]}  h6 {[%clk 0:02:34]} 9. Be3 {[%clk 0:02:49]}  Nc5 {[%clk 0:02:34]} 10. Nd2 {[%clk 0:02:46]}  a5 {[%clk 0:02:34]} 11. Be2 {[%clk 0:02:45]}  Ne8 {[%clk 0:02:33]} 12. g4 {[%clk 0:02:44]}  Bd7 {[%clk 0:02:31]} 13. h4 {[%clk 0:02:40]}  f5 {[%clk 0:02:30]} 14. gxf5 {[%clk 0:02:36]}  gxf5 {[%clk 0:02:31]} 15. exf5 {[%clk 0:02:36]}  Bxf5 {[%clk 0:02:30]} 16. Bxc5 {[%clk 0:02:36]}  dxc5 {[%clk 0:02:30]} 17. Bg4 {[%clk 0:02:34]}  Nd6 {[%clk 0:02:10]} 18. Qe2 {[%clk 0:02:17]}  e4 {[%clk 0:01:59]} 19. Bxf5 {[%clk 0:02:07]}  Nxf5 {[%clk 0:01:59]} 20. Ndxe4 {[%clk 0:02:06]}  Nd4 {[%clk 0:01:59]} 21. Qg4 {[%clk 0:01:48]}  Nc2+ {[%clk 0:01:47]} 22. Kd2 {[%clk 0:01:48]}  Nxa1 {[%clk 0:01:47]} 23. Rxa1 {[%clk 0:01:48]}  Qc8 {[%clk 0:01:42]} 24. Qg3 {[%clk 0:01:45]}  Qf5 {[%clk 0:01:31]} 25. Rg1 {[%clk 0:01:41]}  Rf7 {[%clk 0:01:32]} 26. Rg2 {[%clk 0:01:28]}  b6 {[%clk 0:01:28]} 27. a3 {[%clk 0:01:22]}  Re8 {[%clk 0:01:21]} 28. Qd3 {[%clk 0:01:09]}  Kh8 {[%clk 0:01:13]} 29. Kc2 {[%clk 0:01:03]}  Bd4 {[%clk 0:01:11]} 30. Kb3 {[%clk 0:01:01]}  Qf3 {[%clk 0:01:01]} 31. Qf1 {[%clk 0:00:48]}  Rxe4 {[%clk 0:01:00]} 32. Rg3 {[%clk 0:00:45]}  Qxf2 {[%clk 0:00:53]} 33. Qxf2 {[%clk 0:00:42]}  Bxf2 {[%clk 0:00:51]} 34. Rg6 {[%clk 0:00:37]}  Rxh4 {[%clk 0:00:50]} 35. d6 {[%clk 0:00:37]}  cxd6 {[%clk 0:00:49]} 36. Rxd6 {[%clk 0:00:37]}  Bd4 {[%clk 0:00:50]} 37. Nd5 {[%clk 0:00:37]}  Rh3+ {[%clk 0:00:47]} 38. Ka4 {[%clk 0:00:36]}  Rf2 {[%clk 0:00:48]} 39. b3 {[%clk 0:00:32]}  Ra2 {[%clk 0:00:47]} 40. Rxb6 {[%clk 0:00:32]}  Bb2 {[%clk 0:00:47]} 41. Rb8+ {[%clk 0:00:24]}  Kg7 {[%clk 0:00:47]} 42. Rb7+ {[%clk 0:00:24]}  Kg8 {[%clk 0:00:45]} 43. Ne7+ {[%clk 0:00:19]}  Kf8 {[%clk 0:00:43]} 44. Ng6+ {[%clk 0:00:19]}  Ke8 {[%clk 0:00:44]} 45. Re7+ {[%clk 0:00:18]}  Kd8 {[%clk 0:00:43]} 46. Rh7 {[%clk 0:00:18]}  Rxa3+ {[%clk 0:00:42]} 47. Kb5 {[%clk 0:00:18]}  Rhxb3+ {[%clk 0:00:43]} 48. Kc6 {[%clk 0:00:19]}  Rg3 {[%clk 0:00:38]} 49. Rxh6 {[%clk 0:00:17]}  Bg7 {[%clk 0:00:36]} 50. Rh5 {[%clk 0:00:07]}  Rxg6+ {[%clk 0:00:36]} 51. Kb7 {[%clk 0:00:07]}  Rd3 {[%clk 0:00:31]} 52. Rf5 {[%clk 0:00:05]}  Rd7+ {[%clk 0:00:31]} 53. Ka8 {[%clk 0:00:05]}  Re6 {[%clk 0:00:30]} 54. Kb8 {[%clk 0:00:03]}  Re8 {[%clk 0:00:28]} 55. Rf7 {[%clk 0:00:02]}  Rxf7 {[%clk 0:00:26]} 0-1


[Site "https://www.chess.com"]